lending/lending_fUSD_20240111
["ID","MTS","AMOUNT","RATE_DAILY","PERIOD"]
[311184135,1704975602502,150.0,0.00026,2]
[311184136,1704975602719,150.0,0.00026,2]
[311184162,1704976033285,-523.20670564,0.0002737,2]
[311184163,1704976033318,-1000.0,0.00027371,2]
[311184164,1704976033352,-101.1004144,0.00027371,2]
[311184165,1704976035100,-118.89865404,0.00027371,2]
[311184166,1704976035120,-33.7834644,0.00027371,2]
[311184167,1704976036114,-116.2165356,0.00027371,2]
[311184168,1704976036136,-1376.60262935,0.00027372,2]
[311184175,1704976147098,-155.0,0.00026544,2]
[311184176,1704976147117,-300.0,0.00026544,2]
[311184177,1704976147298,-246.33521087,0.00026545,2]
[311184178,1704976147318,-177.6089,0.00026546,2]
[311184179,1704976147338,-1000.0,0.00026546,2]
[311184180,1704976147360,-532.15292742,0.00026546,2]
[311184181,1704976147379,-288.51705321,0.00026547,2]
[311184182,1704976147399,-219.99906844,0.00026547,2]
[311184183,1704976147419,-196.65894116,0.00026548,2]
[311184184,1704976147439,-202.99000451,0.00026548,2]
[311184185,1704976147460,-16743.01925658,0.00027367,2]
[311184186,1704976147479,-10541.90249824,0.00027368,2]
[311184187,1704976147499,-3676.23661568,0.00027369,2]
[311184188,1704976147519,-340.0,0.00027371,2]
[311184189,1704976147538,-343.58333133,0.00027373,2]
[311184190,1704976147558,-150.0,0.00027373,2]
[311184191,1704976147577,-150.0,0.00027373,2]
[311184192,1704976147599,-468.65,0.00027379,2]
[311184193,1704976149460,370.66501238,0.00026543,2]
[311184195,1704976166096,-3408.6888084,0.00028315,2]
[311184197,1704976172102,-5916.6025,0.00028315,2]
[311184204,1704976173998,1409.2292,0.00027235,2]
[311184205,1704976174017,1120.3265902,0.00027235,2]
[311184227,1704976232131,-202.99000451,0.00028313,2]
[311184228,1704976232141,-246.33521087,0.00028313,2]
[311184229,1704976232150,-177.6089,0.00028314,2]
[311184230,1704976232160,-974.66164361,0.00028314,2]
[311184231,1704976232169,-5329.8686916,0.00028315,2]
[311184232,1704976232178,-499.99,0.00028423,2]
[311184233,1704976232188,-151.64155004,0.00028437,2]
[311184234,1704976232197,-559.0494248,0.00028478,2]
[311184235,1704976232206,-502.82862032,0.00028798,2]
[311184236,1704976232216,-252.45402742,0.00028798,2]
[311184237,1704976232225,-1175.44947488,0.000288,2]
[311184238,1704976232234,-2477.99,0.00028903,2]
[311184239,1704976232243,-200.0,0.00028929,2]
[311184240,1704976232252,-163.98,0.00028955,2]
[311184241,1704976232261,-858.56950078,0.00029028,2]
[311184242,1704976232270,-151.64154988,0.00029028,2]
[311184243,1704976232278,-946.3,0.00029028,2]
[311184244,1704976232287,-800.0,0.00029048,2]
[311184245,1704976232297,-250.0,0.00029099,2]
[311184246,1704976232306,-572.27,0.00029158,2]
[311184247,1704976232315,-153.46,0.00029216,2]
[311184248,1704976232324,-254.72,0.00029238,2]
[311184249,1704976232333,-741.59,0.00029276,2]
[311184250,1704976232342,-158.54,0.00029339,2]
[311184251,1704976232351,-200.0,0.00029374,2]
[311184252,1704976232360,-170.87,0.00029396,2]
[311184253,1704976232532,-603.34,0.00029527,2]
[311184254,1704976232542,-165.55,0.00029557,2]
[311184255,1704976232551,-279.21171931,0.00029563,2]
[311184256,1704976232560,-23900.0,0.00029564,2]
[311184257,1704976232570,-151.64154988,0.00029619,2]
[311184258,1704976232579,-468.65,0.00029642,2]
[311184259,1704976232588,-162.96,0.00029704,2]
[311184260,1704976232598,-2733.60974337,0.00029795,2]
[311184261,1704976232607,-883.91899478,0.00029796,2]
[311184262,1704976232616,-212.81519311,0.000298,2]
[311184263,1704976232627,-156.26737989,0.000298,2]
[311184264,1704976232636,-159.92804344,0.000298,2]
[311184265,1704976232645,-372.67519195,0.000298,2]
[311184266,1704976232653,-572.27,0.00030137,2]
[311184267,1704976232665,-151.64154988,0.00030211,2]
[311184268,1704976232676,-151.64154988,0.00030802,2]
[311184269,1704976232685,-158.54,0.00030867,2]
[311184270,1704976232698,-225.88,0.00030869,2]
[311184271,1704976232707,-1000.0,0.00031038,2]
[311184272,1704976232718,-200.0,0.00031059,2]
[311184273,1704976232727,-572.27,0.00031115,2]
[311184274,1704976232737,-2569.50555685,0.0003117,2]
[311184275,1704976232747,-151.64154988,0.00031393,2]
[311184276,1704976232757,-170.95,0.00031744,2]
[311184277,1704976232768,-468.65,0.00031906,2]
[311184278,1704976232778,-151.64154988,0.00031984,2]
[311184279,1704976232787,-13549.41259809,0.00031989,2]
[311184280,1704976232797,-238.32,0.0003199,10]
[311184281,1704976232806,-198.6,0.0003199,10]
[311184282,1704976232815,-170.0792218,0.00031994,2]
[311184283,1704976232824,-255.0640545,0.00031998,4]
[311184284,1704976232833,-155.72764913,0.00031998,4]
[311184285,1704976232842,-288.02041615,0.00031998,4]
[311184286,1704976232852,-206.77636635,0.00031998,4]
[311184287,1704976232861,-261.29607207,0.00031998,4]
[311184288,1704976232871,-266.25013217,0.00031999,4]
[311184289,1704976232880,-1302.12029336,0.00031999,4]
[311184290,1704976232889,-266.47788631,0.00031999,4]
[311184291,1704976232898,-4934.70191508,0.00031999,4]
[311184292,1704976232908,-136665.30742382,0.00032,2]
[311184293,1704976232921,-968.60609467,0.00032,2]
[311184294,1704976232973,-22881.89179509,0.00032,2]
[311184295,1704976232984,-900.0,0.00032,2]
[311184296,1704976232996,-697.35128938,0.00032,2]
[311184297,1704976233072,-500.7777886,0.00032,2]
[311184298,1704976233084,-5758.39645052,0.00032,2]
[311184299,1704976233103,-2644.6,0.00032,2]
[311184300,1704976233114,-2542.89647764,0.00032,2]
[311184301,1704976233123,-572.27,0.00032094,2]
[311184302,1704976233132,-153.84,0.00032448,2]
[311184303,1704976233142,-165.55,0.00032512,2]
[311184304,1704976233151,-178.16,0.00032574,2]
[311184305,1704976233163,-151.64154988,0.00032575,2]
[311184306,1704976233172,-162.75,0.00032669,2]
[311184307,1704976233181,-800.0,0.00032679,2]
[311184308,1704976233190,-478.65,0.00032877,15]
[311184309,1704976233199,-170.0792218,0.0003295,2]
[311184310,1704976233208,-572.27,0.00033072,2]
[311184311,1704976233219,-151.64154988,0.00033166,2]
[311184312,1704976233228,-735.78003,0.0003336,2]
[311184313,1704976233238,-153.84,0.00033431,2]
[311184314,1704976233247,-156.25,0.00033643,2]
[311184315,1704976233256,-151.64154988,0.00033758,2]
[311184316,1704976233265,-225.71102469,0.00033816,14]
[311184317,1704976233275,-713.47331666,0.00033816,4]
[311184318,1704976233284,-170.0792218,0.00033906,2]
[311184319,1704976233294,-377.27189962,0.00033986,4]
[311184320,1704976233303,-1920.1598057,0.00033987,2]
[311184321,1704976233312,-1000.0,0.00034,4]
[311184322,1704976233322,-201.6432844,0.00034,2]
[311184323,1704976233331,-572.27,0.00034051,2]
[311184324,1704976233340,-468.65,0.0003417,2]
[311184325,1704976233349,-9320.06870109,0.00034199,2]
[311184326,1704976233358,-2269.0,0.000342,3]
[311184327,1704976233369,-1854.0,0.000342,3]
[311184328,1704976233378,-160.69,0.00034203,2]
[311184329,1704976233387,-151.64154988,0.00034349,2]
[311184330,1704976233396,-153.84,0.00034414,2]
[311184331,1704976233405,-1614.237897,0.0003452,2]
[311184332,1704976233416,-15186.910637,0.0003452,2]
[311184333,1704976233425,-1117.77,0.00034521,2]
[311184334,1704976233435,-180.0,0.00034658,2]
[311184335,1704976233444,-1576.9354462,0.00034762,7]
[311184336,1704976233453,-2421.356846,0.00034794,2]
[311184337,1704976233463,-22780.365956,0.00034794,2]
[311184338,1704976233472,-349.60760483,0.0003484,2]
[311184339,1704976233482,-170.0792218,0.00034862,2]
[311184340,1704976233491,-3228.475795,0.00034931,2]
[311184341,1704976233500,-30373.821275,0.00034931,2]
[311184342,1704976233510,-151.64154988,0.0003494,2]
[311184343,1704976233519,-200.0,0.00034941,2]
[311184344,1704976233529,-15834.03528614,0.00035,2]
[311184345,1704976233538,-1297.64532994,0.00035,2]
[311184346,1704976233547,-1000.0,0.00035,2]
[311184347,1704976233556,-572.27,0.00035029,2]
[311184348,1704976233566,-4035.594743,0.00035068,2]
[311184349,1704976233575,-37967.276594,0.00035068,2]
[311184350,1704976233585,-156.15129015,0.00035161,4]
[311184351,1704976233594,-955.56,0.00035165,2]
[311184352,1704976233603,-5649.832641,0.00035342,2]
[311184353,1704976233613,-53154.187232,0.00035342,2]
[311184354,1704976233622,-153.84,0.00035397,2]
[311184355,1704976233632,-151.64154988,0.00035531,2]
[311184356,1704976233641,-178.16,0.00035539,2]
[311184357,1704976233650,-1576.93544616,0.00035595,7]
[311184358,1704976233662,-151.28,0.00035616,2]
[311184359,1704976233673,-1117.77,0.00035798,2]
[311184360,1704976233683,-1790.03588575,0.00035818,2]
[311184361,1704976233693,-170.0792218,0.00035818,2]
[311184362,1704976233703,-735.78004,0.0003586,2]
[311184363,1704976233713,-2716.0,0.000359,2]
[311184364,1704976233723,-154.94769829,0.000359,2]
[311184365,1704976233732,-500.0,0.000359,2]
[311184366,1704976233742,-1292.01226425,0.00035903,13]
[311184367,1704976234863,-81382.18903843,0.00035903,13]
[311184368,1704976235287,-3952.82690259,0.00035903,13]
[311184373,1704976238186,-3124.01825964,0.00035903,13]
[311184374,1704976238199,-12072.44008781,0.00035903,13]
[311184375,1704976238210,-221.71463965,0.00035908,2]
[311184376,1704976238220,-59085.3084088,0.00035918,12]
[311184377,1704976238230,-27760.25042158,0.00035934,12]
[311184378,1704976238240,-150.31,0.00036,2]
[311184379,1704976238250,-572.27,0.00036008,2]
[311184380,1704976238260,-256.69672214,0.00036089,2]
[311184381,1704976238270,-256.69672214,0.00036089,2]
[311184382,1704976238280,-256.69672214,0.00036089,2]
[311184383,1704976238290,-256.69672214,0.00036089,2]
[311184384,1704976238300,-151.64154988,0.00036122,2]
[311184385,1704976238311,-349.60760481,0.00036253,2]
[311184386,1704976238321,-233.51466992,0.00036296,8]
[311184387,1704976238330,-800.0,0.0003631,2]
[311184388,1704976238340,-158.15,0.00036374,2]
[311184389,1704976238349,-153.84,0.00036381,2]
[311184390,1704976238359,-1069.176591,0.000364,2]
[311184391,1704976238368,-1576.93544616,0.00036427,7]
[311184392,1704976238377,-468.65,0.00036434,2]
[311184393,1704976238387,-256.69672214,0.00036482,2]
[311184394,1704976238396,-158.15,0.00036588,2]
[311184395,1704976238406,-478.65,0.00036613,15]
[311184396,1704976238416,-500.0,0.000367,2]
[311184397,1704976238426,-151.64154988,0.00036713,2]
[311184398,1704976238437,-158.15,0.00036802,2]
[311184399,1704976238446,-7500.0,0.000369,2]
[311184400,1704976238455,-152.0,0.00036947,3]
[311184401,1704976238465,-1000.0,0.00036986,2]
[311184402,1704976238474,-572.27,0.00036986,2]
[311184403,1704976238483,-1386.38282133,0.00037003,4]
[311184404,1704976238493,-236.970236,0.0003701,2]
[311184405,1704976238502,-198.285519,0.0003701,2]
[311184406,1704976238512,-158.15,0.00037016,2]
[311184407,1704976238521,-1117.77,0.00037075,2]
[311184408,1704976238532,-6525.80881251,0.0003722,10]
[311184409,1704976238542,-158.15,0.0003723,2]
[311184410,1704976238554,-151.28,0.00037235,2]
[311184411,1704976238563,-1576.93544616,0.0003726,8]
[311184412,1704976238572,-121067.0,0.00037295,32]
[311184413,1704976238582,-151.64154988,0.00037305,2]
[311184414,1704976238591,-153.84,0.00037364,2]
[311184415,1704976238601,-151.44223565,0.00037393,7]
[311184416,1704976238611,-1790.03588572,0.00037397,2]
[311184417,1704976238620,-1000.0,0.000374,2]
[311184418,1704976238630,-158.15,0.00037444,2]
[311184419,1704976238639,-236.970236,0.00037472,2]
[311184423,1704976238815,-699.88796704,0.00037511,2]
[311184426,1704976238824,-205.0,0.00037582,2]
[311184429,1704976238834,-256.69672214,0.00037603,2]
[311184432,1704976238843,-158.15,0.00037658,2]
[311184435,1704976238852,-349.60760481,0.00037665,2]
[311184438,1704976238861,-156.97116275,0.00037697,2]
[311184441,1704976238870,-4972.27,0.000377,30]
[311184444,1704976238879,-152.51,0.000377,3]
[311184447,1704976238888,-152.51,0.000377,3]
[311184451,1704976238898,-152.51,0.000377,3]
[311184454,1704976238911,-152.51,0.000377,3]
[311184456,1704976238923,-152.51,0.000377,3]
[311184458,1704976238932,-152.51,0.000377,3]
[311184460,1704976238942,-152.51,0.000377,3]
[311184462,1704976238951,-152.51,0.000377,3]
[311184464,1704976238960,-152.51,0.000377,3]
[311184466,1704976238970,-152.51,0.000377,3]
[311184468,1704976238979,-152.51,0.000377,3]
[311184470,1704976238988,-152.51,0.000377,3]
[311184472,1704976238998,-152.51,0.000377,3]
[311184474,1704976239008,-152.51,0.000377,3]
[311184476,1704976239017,-152.51,0.000377,3]
[311184478,1704976239027,-4972.27,0.000377,2]
[311184480,1704976239036,-158.15,0.00037872,2]
[311184482,1704976239046,-1475.38353446,0.00037887,8]
[311184484,1704976239055,-1233.56587734,0.00037887,8]
[311184486,1704976239065,-1000.0,0.00037887,10]
[311184487,1704976239074,-291.08626841,0.00037887,8]
[311184488,1704976239083,-302.58663511,0.00037887,8]
[311184489,1704976239093,-3419.583179,0.00037887,8]
[311184491,1704976239102,-1000.0,0.00037887,10]
[311184492,1704976239112,-200.79694508,0.00037887,8]
[311184493,1704976239121,-151.64154988,0.00037896,2]
[311184494,1704976239130,-95337.7033809,0.000379,2]
[311184495,1704976239140,-236.970236,0.00037935,2]
[311184496,1704976239149,-198.285519,0.00037935,2]
[311184497,1704976239158,-572.27,0.00037965,2]
[311184498,1704976239169,-3431.63150479,0.00038,4]
[311184499,1704976239178,-176.05,0.00038,2]
[311184500,1704976239188,-183.0,0.00038,2]
[311184501,1704976239197,-500.0,0.00038,3]
[311184502,1704976239206,-253.32417792,0.00038,2]
[311184503,1704976239216,-253.32417792,0.00038,2]
[311184504,1704976239225,-253.32417792,0.00038,2]
[311184505,1704976239235,-253.32417792,0.00038,2]
[311184506,1704976239244,-253.32417792,0.00038,2]
[311184507,1704976239257,-253.32417792,0.00038,2]
[311184508,1704976239266,-253.32417792,0.00038,2]
[311184509,1704976239276,-253.32417792,0.00038,2]
[311184510,1704976239285,-253.32417792,0.00038,2]
[311184511,1704976239294,-253.32417792,0.00038,2]
[311184512,1704976239304,-253.32417792,0.00038,2]
[311184513,1704976239313,-253.32417792,0.00038,2]
[311184514,1704976239323,-253.32417792,0.00038,2]
[311184515,1704976239333,-253.32417792,0.00038,2]
[311184516,1704976239342,-253.32417792,0.00038,2]
[311184517,1704976239352,-253.32417792,0.00038,2]
[311184518,1704976239362,-253.32417792,0.00038,2]
[311184519,1704976239371,-253.32417792,0.00038,2]
[311184520,1704976239381,-253.32417792,0.00038,2]
[311184521,1704976239391,-253.32417792,0.00038,2]
[311184522,1704976239401,-253.32417792,0.00038,2]
[311184523,1704976239410,-253.32417792,0.00038,2]
[311184524,1704976239423,-253.32417792,0.00038,2]
[311184525,1704976239433,-253.32417792,0.00038,2]
[311184526,1704976239443,-253.32417792,0.00038,2]
[311184527,1704976239453,-253.32417792,0.00038,2]
[311184528,1704976239463,-253.32417792,0.00038,2]
[311184529,1704976239474,-253.32417792,0.00038,2]
[311184530,1704976239483,-253.32417792,0.00038,2]
[311184531,1704976239493,-253.32417792,0.00038,2]
[311184532,1704976239503,-238.68265445,0.00038,2]
[311184533,1704976239513,-238.68265445,0.00038,2]
[311184534,1704976239522,-238.68265445,0.00038,2]
[311184535,1704976239532,-238.68265445,0.00038,2]
[311184536,1704976239542,-238.68265445,0.00038,2]
[311184537,1704976239552,-238.68265445,0.00038,2]
[311184538,1704976239562,-238.68265445,0.00038,2]
[311184539,1704976239571,-238.68265445,0.00038,2]
[311184540,1704976239581,-238.68265445,0.00038,2]
[311184541,1704976239590,-238.68265445,0.00038,2]
[311184542,1704976239600,-238.68265445,0.00038,2]
[311184543,1704976239609,-238.68265445,0.00038,2]
[311184544,1704976239619,-238.68265445,0.00038,2]
[311184545,1704976239628,-238.68265445,0.00038,2]
[311184546,1704976239638,-238.68265445,0.00038,2]
[311184547,1704976239647,-238.68265445,0.00038,2]
[311184548,1704976239656,-238.68265445,0.00038,2]
[311184549,1704976239667,-238.68265445,0.00038,2]
[311184550,1704976239677,-238.68265445,0.00038,2]
[311184551,1704976239686,-238.68265445,0.00038,2]
[311184552,1704976239695,-238.68265445,0.00038,2]
[311184553,1704976239706,-238.68265445,0.00038,2]
[311184554,1704976239716,-238.68265445,0.00038,2]
[311184555,1704976239726,-238.68265445,0.00038,2]
[311184556,1704976239735,-238.68265445,0.00038,2]
[311184557,1704976239746,-238.68265445,0.00038,2]
[311184558,1704976239756,-238.68265445,0.00038,2]
[311184559,1704976239766,-238.68265445,0.00038,2]
[311184560,1704976239775,-238.68265445,0.00038,2]
[311184561,1704976239785,-238.68265445,0.00038,2]
[311184562,1704976239794,-1896.27,0.00038002,2]
[311184563,1704976239803,-1005.857,0.00038026,2]
[311184564,1704976239812,-941.0,0.00038026,2]
[311184565,1704976239821,-834.0,0.00038026,2]
[311184566,1704976239830,-1234.0,0.00038026,2]
[311184567,1704976239840,-343.543,0.00038026,2]
[311184568,1704976239851,-236.757,0.00038026,2]
[311184569,1704976239860,-150.39187774,0.00038047,7]
[311184570,1704976239871,-150.23893816,0.00038048,2]
[311184571,1704976239880,-9259.89145855,0.0003805,2]
[311184572,1704976239979,-2990.64555306,0.0003805,2]
[311184573,1704976239992,-16638.08608839,0.0003805,2]
[311184574,1704976240002,-16907.0183,0.0003805,2]
[311184575,1704976240012,-158.15,0.00038086,2]
[311184576,1704976240022,-1576.93544616,0.00038092,8]
[311184577,1704976240032,-5869.69631116,0.000381,11]
[311184578,1704976240041,-200.06257653,0.00038148,4]
[311184579,1704976240051,-569.59312735,0.00038148,4]
[311184580,1704976240061,-398.36562166,0.00038149,4]
[311184581,1704976240071,-19242.01071416,0.00038151,2]
[311184582,1704976240081,-151.02717831,0.000382,2]
[311184583,1704976240091,-237.26198864,0.000382,2]
[311184584,1704976240100,-151.44223565,0.00038253,7]
[311184585,1704976240110,-1117.38617129,0.00038287,3]
[311184586,1704976240119,-158.15,0.000383,2]
[311184587,1704976240129,-5869.69631105,0.00038326,11]
[311184588,1704976240138,-153.84,0.00038347,2]
[311184589,1704976240147,-1117.77,0.00038352,2]
[311184590,1704976240157,-735.78003,0.0003836,2]
[311184591,1704976240167,-150.31,0.0003839,2]
[311184592,1704976240177,-236.970236,0.00038398,2]
[311184593,1704976240186,-6271.0,0.000384,2]
[311184594,1704976240195,-1000.0,0.000384,2]
[311184595,1704976240205,-494.40111,0.00038448,4]
[311184596,1704976240215,-151.64154988,0.00038487,2]
[311184597,1704976240225,-178.16,0.00038504,2]
[311184598,1704976240234,-158.15,0.00038514,2]
[311184599,1704976240244,-567.40111,0.00038548,6]
[311184600,1704976240254,-5869.69631105,0.00038553,12]
[311184601,1704976240263,-150.23893773,0.00038558,2]
[311184602,1704976240273,-567.40111,0.00038648,4]
[311184603,1704976240282,-151.0,0.0003867,2]
[311184604,1704976240292,-528.93968511,0.00038683,4]
[311184605,1704976240302,-468.65,0.00038698,2]
[311184606,1704976240312,-16423.06421404,0.00038699,4]
[311184607,1704976240322,-152.51,0.000387,3]
[311184608,1704976240332,-152.51,0.000387,3]
[311184609,1704976240342,-152.51,0.000387,3]
[311184610,1704976240352,-152.51,0.000387,3]
[311184611,1704976240361,-152.51,0.000387,3]
[311184612,1704976240371,-152.51,0.000387,3]
[311184613,1704976240382,-152.51,0.000387,3]
[311184614,1704976240391,-152.51,0.000387,3]
[311184615,1704976240401,-152.51,0.000387,3]
[311184617,1704976240410,-152.51,0.000387,3]
[311184619,1704976240420,-152.51,0.000387,3]
[311184621,1704976240430,-152.51,0.000387,3]
[311184623,1704976240439,-152.51,0.000387,3]
[311184625,1704976240449,-152.51,0.000387,3]
[311184627,1704976240458,-152.51,0.000387,3]
[311184629,1704976240468,-256.69672214,0.00038725,2]
[311184632,1704976240477,-158.15,0.00038728,2]
[311184634,1704976240487,-567.40111,0.00038748,6]
[311184636,1704976240496,-95337.7033809,0.00038769,3]
[311184638,1704976240505,-36022.9537,0.00038774,2]
[311184640,1704976240515,-5869.69631105,0.00038779,12]
[311184642,1704976240525,-975.0,0.000388,16]
[311184644,1704976240534,-163.56790532,0.00038803,7]
[311184645,1704976240546,-200.0,0.00038823,2]
[311184646,1704976240555,-567.40111,0.00038848,4]
[311184647,1704976240565,-158.71511871,0.00038854,2]
[311184648,1704976240574,-151.28,0.00038854,2]
[311184649,1704976240585,-236.970236,0.0003886,2]
[311184650,1704976240595,-198.285519,0.0003886,2]
[311184651,1704976240605,-2312.47292618,0.00038872,4]
[311184652,1704976240614,-1060.36886669,0.00038872,4]
[311184653,1704976240624,-1656.07949933,0.00038872,4]
[311184654,1704976240633,-5279.73151957,0.00038873,4]
[311184655,1704976240643,-210.93356953,0.00038873,4]
[311184656,1704976240652,-603.85889339,0.00038873,4]
[311184657,1704976240662,-155.0,0.00038873,4]
[311184658,1704976240675,-1576.93544616,0.00038925,9]
[311184659,1704976240685,-158.15,0.00038942,2]
[311184660,1704976240694,-572.27,0.00038943,2]
[311184661,1704976240706,-567.40111,0.00038948,6]
[311184662,1704976240716,-200.0,0.00038959,15]
[311184663,1704976240726,-1790.03588572,0.00038976,2]
[311184664,1704976240736,-281.73212903,0.0003898,2]
[311184665,1704976240749,-9266.58414793,0.00038998,7]
[311184666,1704976240759,-155.29235094,0.00038999,4]
[311184667,1704976240769,-190.76603793,0.00038999,4]
[311184668,1704976240779,-12727.9769636,0.00039,2]
[311184669,1704976240789,-1427.43973993,0.00039,2]
[311184670,1704976240799,-11494.58,0.00039,3]
[311184671,1704976240808,-8932.23185074,0.00039,120]
[311184672,1704976240818,-2000.0,0.00039,3]
[311184673,1704976240827,-2000.0,0.00039,3]
[311184674,1704976240837,-2000.0,0.00039,3]
[311184675,1704976240847,-4360.04685155,0.00039,9]
[311184676,1704976240856,-2000.0,0.00039,3]
[311184677,1704976240866,-350.0,0.00039,2]
[311184678,1704976240875,-230.01310602,0.00039,2]
[311184679,1704976240884,-161.22144985,0.00039,2]
[311184680,1704976240893,-776.10323469,0.00039,2]
[311184681,1704976240903,-500.0,0.00039,3]
[311184682,1704976240912,-214702.0,0.00039,2]
[311184683,1704976240924,-5869.69631105,0.00039005,12]
[311184684,1704976240934,-567.40111,0.00039048,4]
[311184685,1704976240943,-150.23893773,0.00039067,3]
[311184686,1704976240953,-197.40212876,0.00039068,2]
[311184687,1704976240962,-256.49751772,0.00039068,2]
[311184688,1704976240972,-155.22131355,0.00039068,4]
[311184689,1704976240981,-2082.34850931,0.00039068,14]
[311184690,1704976241159,-4820.58202477,0.00039068,2]
[311184691,1704976241171,-665.7765632,0.00039068,2]
[311184692,1704976241179,-1637.82043382,0.00039068,2]
[311184693,1704976241188,-2000.0,0.00039068,4]
[311184694,1704976241197,-189.05709796,0.00039074,4]
[311184695,1704976241207,-448.6322592,0.00039074,4]
[311184696,1704976241216,-364.82999995,0.00039074,4]
[311184697,1704976241226,-3449.37267862,0.00039074,4]
[311184698,1704976241235,-240.41903004,0.00039074,4]
[311184699,1704976241244,-220.96771173,0.00039074,4]
[311184700,1704976241254,-1367.77902648,0.00039074,4]
[311184701,1704976241263,-164.31445068,0.00039074,4]
[311184702,1704976241273,-180.017739,0.00039074,4]
[311184703,1704976241282,-453.7451548,0.00039074,4]
[311184704,1704976241292,-155.0,0.00039074,4]
[311184705,1704976241301,-215.36700279,0.00039074,4]
[311184706,1704976241310,-235.9285818,0.00039074,4]
[311184707,1704976241320,-581.87642113,0.00039074,4]
[311184708,1704976241329,-524.36087443,0.00039074,4]
[311184709,1704976241339,-155.89376086,0.00039074,4]
[311184710,1704976241349,-6440.956745,0.00039074,4]
[311184711,1704976241358,-155.79135956,0.00039074,4]
[311184712,1704976241370,-259.11318057,0.00039074,4]
[311184713,1704976241380,-1776.90277835,0.00039074,4]
[311184714,1704976241389,-178.28908188,0.00039074,4]
[311184715,1704976241399,-235.31671017,0.00039074,2]
[311184716,1704976241408,-155.0,0.00039074,4]
[311184717,1704976241419,-155.0,0.00039074,4]
[311184718,1704976241429,-156.11355514,0.00039074,4]
[311184719,1704976241438,-155.40188375,0.00039074,4]
[311184720,1704976241448,-574.50306578,0.00039075,4]
[311184721,1704976241458,-155.3250375,0.00039076,4]
[311184722,1704976241468,-183.13635148,0.00039076,4]
[311184723,1704976241479,-183.68968646,0.00039076,4]
[311184724,1704976241488,-3668.89351846,0.00039077,4]
[311184725,1704976241498,-151.64154988,0.00039078,2]
[311184726,1704976241508,-349.60760481,0.00039078,2]
[311184727,1704976241518,-250.0,0.00039078,2]
[311184728,1704976241527,-1006.2094,0.00039078,3]
[311184729,1704976241537,-5000.0,0.00039078,2]
[311184730,1704976241546,-4074.0,0.0003909,3]
[311184731,1704976241556,-777.40111,0.00039148,4]
[311184732,1704976241566,-158.15,0.00039156,2]
[311184733,1704976241576,-150.31,0.00039158,2]
[311184734,1704976241585,-205.00240144,0.00039167,4]
[311184735,1704976241595,-381350.813524,0.00039168,4]
[311184736,1704976241604,-151.0,0.00039168,7]
[311184737,1704976241614,-151.0,0.00039168,7]
[311184738,1704976241623,-151.0,0.00039168,7]
[311184739,1704976241633,-179.596338,0.00039168,7]
[311184740,1704976241642,-151.0,0.00039168,7]
[311184741,1704976241653,-151.0,0.00039168,7]
[311184742,1704976241663,-151.0,0.00039168,7]
[311184743,1704976241674,-151.0,0.00039168,7]
[311184744,1704976241683,-240.14985,0.00039168,7]
[311184745,1704976241693,-151.0,0.00039168,7]
[311184746,1704976241702,-151.0,0.00039168,7]
[311184747,1704976241712,-164.595748,0.00039168,7]
[311184748,1704976241721,-151.0,0.00039168,7]
[311184749,1704976241731,-151.0,0.00039168,7]
[311184750,1704976241741,-280.008321,0.00039168,7]
[311184751,1704976241751,-280.008321,0.00039168,7]
[311184752,1704976241761,-151.0,0.00039168,7]
[311184753,1704976241771,-776.104603,0.00039168,7]
[311184754,1704976241781,-776.104603,0.00039168,7]